{"text_format":"1","workbook":"xlsx","n_sheets":4,"sheets":["Бланк Методички","Обработка результатов","Результат","Результат с пояснениями"],"not_rendered":{"charts":0,"images":1,"macros":1,"external_links":0,"defined_names":0,"comments":0,"pivot_tables":0},"unopened":[],"bounds":{"document_bytes":16777216,"sheet_cells":100000,"rows_first":2000,"rows_last":500,"rows_between":2000,"halvings":0,"cell_chars":16384,"cell_head_chars":4096},"cells_cut":0,"cells_raw":0,"read":"whole","date_system":"1900"}

{"sheet":"Бланк Методички","index":0,"n_rows":80,"n_cols":34,"rows_kept":80,"cut":false,"hidden":false,"merged":[[16,1,16,13],[17,1,17,13],[8,1,8,13],[9,1,9,13],[10,1,10,13],[11,1,11,13],[12,1,12,13],[37,1,37,13],[38,1,38,13],[1,0,1,2],[33,1,33,13],[34,1,34,13],[35,1,35,13],[36,1,36,13],[42,1,42,13],[28,1,28,13],[29,1,29,13],[30,1,30,13],[31,1,31,13],[32,1,32,13],[18,1,18,13],[19,1,19,13],[20,1,20,13],[21,1,21,13],[22,1,22,13],[23,1,23,13],[24,1,24,13],[25,1,25,13],[26,1,26,13],[27,1,27,13],[13,1,13,13],[14,1,14,13],[15,1,15,13],[17,14,17,15],[18,14,18,15],[19,14,19,15],[71,1,71,13],[72,1,72,13],[73,1,73,13],[74,1,74,13],[75,1,75,13],[66,1,66,13],[67,1,67,13],[68,1,68,13],[69,1,69,13],[70,1,70,13],[61,1,61,13],[62,1,62,13],[63,1,63,13],[64,1,64,13],[65,1,65,13],[56,1,56,13],[57,1,57,13],[58,1,58,13],[59,1,59,13],[60,1,60,13],[43,1,43,13],[8,14,8,15],[9,14,9,15],[10,14,10,15],[11,14,11,15],[12,14,12,15],[13,14,13,15],[14,14,14,15],[15,14,15,15],[16,14,16,15],[20,14,20,15],[21,14,21,15],[22,14,22,15],[23,14,23,15],[24,14,24,15],[76,1,76,13],[77,1,77,13],[78,1,78,13],[79,1,79,13],[44,1,44,13],[39,1,39,13],[40,1,40,13],[41,1,41,13],[45,1,45,13],[46,1,46,13],[47,1,47,13],[48,1,48,13],[49,1,49,13],[55,1,55,13],[50,1,50,13],[51,1,51,13],[52,1,52,13],[53,1,53,13],[54,1,54,13],[30,14,30,15],[31,14,31,15],[32,14,32,15],[33,14,33,15],[34,14,34,15],[25,14,25,15],[26,14,26,15],[27,14,27,15],[28,14,28,15],[29,14,29,15],[40,14,40,15],[41,14,41,15],[42,14,42,15],[43,14,43,15],[44,14,44,15],[35,14,35,15],[36,14,36,15],[37,14,37,15],[38,14,38,15],[39,14,39,15],[57,14,57,15],[58,14,58,15],[59,14,59,15],[50,14,50,15],[51,14,51,15],[52,14,52,15],[53,14,53,15],[54,14,54,15],[45,14,45,15],[46,14,46,15],[47,14,47,15],[48,14,48,15],[49,14,49,15],[3,0,6,15],[1,3,1,15],[75,14,75,15],[76,14,76,15],[77,14,77,15],[78,14,78,15],[79,14,79,15],[70,14,70,15],[71,14,71,15],[72,14,72,15],[73,14,73,15],[74,14,74,15],[65,14,65,15],[66,14,66,15],[67,14,67,15],[68,14,68,15],[69,14,69,15],[60,14,60,15],[61,14,61,15],[62,14,62,15],[63,14,63,15],[64,14,64,15],[55,14,55,15],[56,14,56,15]]}
[null,null,null,null,null,null,null,null,null,null,null,null,null,null,null,null,null,null,null,null,null,null,null,null,null,null,null,null,null,null,null,null,10,"5 А"]
["Фамилия, имя",null,null,null,null,null,null,null,null,null,null,null,null,null,null,null,null,null,null,null,null,null,null,null,null,null,null,null,null,null,null,null,11,"5 Б"]
[null,null,null,null,null,null,null,null,null,null,null,null,null,null,null,null,null,null,null,null,null,null,null,null,null,null,null,null,null,null,null,null,13]
["Вам предлагается ответить на ряд утверждений, касающихся чувств, связанных с работой. Пожалуйста, прочитайте высказывания и решите, испытывали ли вы нечто подобное, выбирая вариант ответа из выпадающего списка. Отвечайте как можно быстрее. Постарайтесь долго не задумываться над выбором ответа. ",null,null,null,null,null,null,null,null,null,null,null,null,null,null,null,null,null,null,null,null,null,null,null,null,null,null,null,null,null,null,"Мальчик",14]
[null,null,null,null,null,null,null,null,null,null,null,null,null,null,null,null,null,null,null,null,null,null,null,null,null,null,null,null,null,null,null,"Девочка",15]
[null,null,null,null,null,null,null,null,null,null,null,null,null,null,null,null,null,null,null,null,null,null,null,null,null,null,null,null,null,null,null,null,16]
[null,null,null,null,null,null,null,null,null,null,null,null,null,null,null,null,null,null,null,null,null,null,null,"Часто"]
[null,null,null,null,null,null,null,null,null,null,null,null,null,null,null,null,null,null,null,null,null,null,null,"Обычно"]
[1,"Я легко раздражаюсь. ",null,null,null,null,null,null,null,null,null,null,null,null,null,null,null,null,null,null,null,null,null,"Редко"]
[2,"Думаю, что работаю лишь потому, что надо где-то работать. ",null,null,null,null,null,null,null,null,null,null,null,null,null,null,null,null,null,null,null,null,null,"Никогда"]
[3,"Меня беспокоит, что думают коллеги о моей работе. "]
[4,"Я чувствую, что у меня нет никаких эмоциональных сил вникать в чужие проблемы. "]
[5,"Меня мучает бессонница. "]
[6,"Думаю, что если бы представилась удачная возможность, я бы сменил место работы. "]
[7,"Я работаю с большим напряжением. "]
[8,"Моя работа приносит мне удовлетворение. "]
[9,"Чувствую, что работа с людьми изматывает меня. "]
[10,"Думаю, что моя работа важна. "]
[11,"Я устаю от человеческих проблем, с решением которых сталкиваюсь на работе. "]
[12,"Я доволен профессией, которую выбрал. "]
[13,"Непонятливость моих коллег или учеников раздражает меня. "]
[14,"Я эмоционально устаю на работе. "]
[15,"Думаю, что не ошибся в выборе своей профессии. "]
[16,"Я чувствую себя опустошенным и разбитым после рабочего дня. "]
[17,"Чувствую, что получаю мало удовлетворения от достигнутых успехов на работе. "]
[18,"Мне трудно устанавливать или поддерживать тесные контакты с коллегами по работе. "]
[19,"Для меня важно преуспеть на работе. "]
[20,"Идя утром на работу, я чувствую себя свежим и отдохнувшим. "]
[21,"Мне кажется, что результаты моей работы не стоят затраченных мною усилий. "]
[22,"У меня не хватает времени на мою семью и личную жизнь. "]
[23,"Я полон оптимизма по отношению к своей работе. "]
[24,"Мне нравится моя работа. "]
[25,"Я устал все время стараться. "]
[26,"Меня утомляет участие в дискуссиях на профессиональные темы. "]
[27,"Мне кажется, что я изолирован от своих коллег по работе. "]
[28,"Я удовлетворен своим профессиональным выбором так же, как и в начале карьеры. "]
[29,"Я чувствую физическое напряжение, усталость. "]
[30,"Постепенно я начинаю испытывать безразличие к своим ученикам. "]
[31,"Работа эмоционально выматывает меня. "]
[32,"Я использую лекарства для улучшения самочувствия. "]
[33,"Меня интересуют результаты работы моих коллег. "]
[34,"Утром мне трудно вставать и идти на работу. "]
[35,"На работе меня преследует мысль: поскорее бы рабочий день закончился. "]
[36,"Нагрузка на работе практически невыносима. "]
[37,"Я ощущаю радость, помогая окружающим людям. "]
[38,"Я чувствую, что стал более безразличным к своей работе. "]
[39,"Случается, что у меня без особой причины начинает болеть голова или желудок. "]
[40,"Я прилагаю усилия, чтобы быть терпеливым с учениками. "]
[41,"Я люблю свою работу. "]
[42,"У меня возникает чувство, что глубоко внутри я эмоционально не защищен. "]
[43,"Меня раздражает поведение моих учеников. "]
[44,"Мне легко понять чувства окружающих по отношению ко мне. "]
[45,"Меня часто охватывает желание все бросить и уйти с рабочего места. "]
[46,"Я замечаю, что становлюсь более черствыми по отношению к людям. "]
[47,"Я чувствую эмоциональное напряжение. "]
[48,"Я совершенно не увлечен и даже не интересуюсь своей работой. "]
[49,"Я чувствую себя измотанным. "]
[50,"Я считаю, что своим трудом я приношу пользу людям. "]
[51,"Временами я сомневаюсь в своих способностях. "]
[52,"Я испытываю ко всему, что происходит вокруг, полную апатию. "]
[53,"Выполнение повседневных дел для меня – источник удовольствия и удовлетворения. "]
[54,"Я не вижу смысла в том, что делаю на работе. "]
[55,"Я чувствую удовлетворение от выбранной мной профессии. "]
[56,"Хочется «плюнуть» на все. "]
[57,"Я жалуюсь на здоровье без четко определенных симптомов. "]
[58,"Я доволен своим положением на работе и в обществе. "]
[59,"Мне понравилась бы работа, отнимающая мало времени и сил. "]
[60,"Я чувствую, что работа с людьми сказывается на моем физическом здоровье. "]
[61,"Я сомневаюсь в значимости своей работы. "]
[62,"Испытываю чувство энтузиазма по отношению к работе. "]
[63,"Я так устаю на работе, что не в состоянии выполнять свои повседневные домашние обязанности. "]
[64,"Считаю, что вполне компетентен в решении проблем, возникающих на работе. "]
[65,"Чувствую, что могу дать детям больше, чем даю. "]
[66,"Мне буквально приходится заставлять себя работать. "]
[67,"Присутствует ощущение, что я могу легко расстроиться, впасть в уныние. "]
[68,"Мне нравится отдавать работе все силы. "]
[69,"Я испытываю состояние внутреннего напряжения и раздражения. "]
[70,"Я стал с меньшим энтузиазмом относиться к своей работе. "]
[71,"Верю, что способен выполнить все, что задумано. "]
[72,"У меня нет желания глубоко вникать в проблемы моих учеников. "]

{"sheet":"Обработка результатов","index":1,"n_rows":12,"n_cols":49,"rows_kept":12,"cut":false,"hidden":true,"merged":[[1,1,1,25],[7,1,7,25],[6,0,6,30],[11,27,11,30],[9,27,9,30],[10,27,10,30],[7,27,7,30],[8,27,8,30]]}
[]
["Шкала","Пункты, номер"]
["Психоэмоциональное истощение",1,5,7,14,16,17,20,25,29,31,32,34,36,39,42,45,47,49,52,54,57,60,63,67,69]
["Личностное отдаление",3,4,9,10,11,13,18,21,30,33,35,38,40,43,46,48,51,56,59,61,66,70,71,72]
["Профессиональная мотивация",2,6,8,12,15,19,22,23,24,26,27,28,37,41,44,50,53,55,58,62,64,65,68]
[]
["Результаты"]
["Шкала","Ответы",null,null,null,null,null,null,null,null,null,null,null,null,null,null,null,null,null,null,null,null,null,null,null,null,"Итого","Уровень"]
["Психоэмоциональное истощение",{"$f":"IF('Бланк Методички'!O9='Бланк Методички'!X7,3,IF('Бланк Методички'!O9='Бланк Методички'!X8,2,IF('Бланк Методички'!O9='Бланк Методички'!X9,1,IF('Бланк Методички'!O9='Бланк Методички'!X10,0,))))","v":0},{"$f":"IF('Бланк Методички'!O13='Бланк Методички'!X7,3,IF('Бланк Методички'!O13='Бланк Методички'!X8,2,IF('Бланк Методички'!O13='Бланк Методички'!X9,1,IF('Бланк Методички'!O13='Бланк Методички'!X10,0,))))","v":0},{"$f":"IF('Бланк Методички'!O15='Бланк Методички'!$X$7,3,IF('Бланк Методички'!O15='Бланк Методички'!$X$8,2,IF('Бланк Методички'!O15='Бланк Методички'!$X$9,1,IF('Бланк Методички'!O15='Бланк Методички'!$X$10,0))))","v":false},{"$f":"IF('Бланк Методички'!O22='Бланк Методички'!$X$7,3,IF('Бланк Методички'!O22='Бланк Методички'!$X$8,2,IF('Бланк Методички'!O22='Бланк Методички'!$X$9,1,IF('Бланк Методички'!O22='Бланк Методички'!$X$10,0))))","v":false},{"$f":"IF('Бланк Методички'!O24='Бланк Методички'!$X$7,3,IF('Бланк Методички'!O24='Бланк Методички'!$X$8,2,IF('Бланк Методички'!O24='Бланк Методички'!$X$9,1,IF('Бланк Методички'!O24='Бланк Методички'!$X$10,0))))","v":false},{"$f":"IF('Бланк Методички'!O25='Бланк Методички'!$X$7,3,IF('Бланк Методички'!O25='Бланк Методички'!$X$8,2,IF('Бланк Методички'!O25='Бланк Методички'!$X$9,1,IF('Бланк Методички'!O25='Бланк Методички'!$X$10,0))))","v":false},{"$f":"IF('Бланк Методички'!O28='Бланк Методички'!$X$7,3,IF('Бланк Методички'!O28='Бланк Методички'!$X$8,2,IF('Бланк Методички'!O28='Бланк Методички'!$X$9,1,IF('Бланк Методички'!O28='Бланк Методички'!$X$10,0))))","v":false},{"$f":"IF('Бланк Методички'!O33='Бланк Методички'!$X$7,3,IF('Бланк Методички'!O33='Бланк Методички'!$X$8,2,IF('Бланк Методички'!O33='Бланк Методички'!$X$9,1,IF('Бланк Методички'!O33='Бланк Методички'!$X$10,0))))","v":false},{"$f":"IF('Бланк Методички'!O37='Бланк Методички'!$X$7,3,IF('Бланк Методички'!O37='Бланк Методички'!$X$8,2,IF('Бланк Методички'!O37='Бланк Методички'!$X$9,1,IF('Бланк Методички'!O37='Бланк Методички'!$X$10,0))))","v":false},{"$f":"IF('Бланк Методички'!O39='Бланк Методички'!$X$7,3,IF('Бланк Методички'!O39='Бланк Методички'!$X$8,2,IF('Бланк Методички'!O39='Бланк Методички'!$X$9,1,IF('Бланк Методички'!O39='Бланк Методички'!$X$10,0))))","v":false},{"$f":"IF('Бланк Методички'!O40='Бланк Методички'!$X$7,3,IF('Бланк Методички'!O40='Бланк Методички'!$X$8,2,IF('Бланк Методички'!O40='Бланк Методички'!$X$9,1,IF('Бланк Методички'!O40='Бланк Методички'!$X$10,0))))","v":false},{"$f":"IF('Бланк Методички'!O42='Бланк Методички'!$X$7,3,IF('Бланк Методички'!O42='Бланк Методички'!$X$8,2,IF('Бланк Методички'!O42='Бланк Методички'!$X$9,1,IF('Бланк Методички'!O42='Бланк Методички'!$X$10,0))))","v":false},{"$f":"IF('Бланк Методички'!O44='Бланк Методички'!$X$7,3,IF('Бланк Методички'!O44='Бланк Методички'!$X$8,2,IF('Бланк Методички'!O44='Бланк Методички'!$X$9,1,IF('Бланк Методички'!O44='Бланк Методички'!$X$10,0))))","v":false},{"$f":"IF('Бланк Методички'!O47='Бланк Методички'!$X$7,3,IF('Бланк Методички'!O47='Бланк Методички'!$X$8,2,IF('Бланк Методички'!O47='Бланк Методички'!$X$9,1,IF('Бланк Методички'!O47='Бланк Методички'!$X$10,0))))","v":false},{"$f":"IF('Бланк Методички'!O50='Бланк Методички'!$X$7,3,IF('Бланк Методички'!O50='Бланк Методички'!$X$8,2,IF('Бланк Методички'!O50='Бланк Методички'!$X$9,1,IF('Бланк Методички'!O50='Бланк Методички'!$X$10,0))))","v":false},{"$f":"IF('Бланк Методички'!O53='Бланк Методички'!$X$7,3,IF('Бланк Методички'!O53='Бланк Методички'!$X$8,2,IF('Бланк Методички'!O53='Бланк Методички'!$X$9,1,IF('Бланк Методички'!O53='Бланк Методички'!$X$10,0))))","v":false},{"$f":"IF('Бланк Методички'!O55='Бланк Методички'!$X$7,3,IF('Бланк Методички'!O55='Бланк Методички'!$X$8,2,IF('Бланк Методички'!O55='Бланк Методички'!$X$9,1,IF('Бланк Методички'!O55='Бланк Методички'!$X$10,0))))","v":false},{"$f":"IF('Бланк Методички'!O57='Бланк Методички'!$X$7,3,IF('Бланк Методички'!O57='Бланк Методички'!$X$8,2,IF('Бланк Методички'!O57='Бланк Методички'!$X$9,1,IF('Бланк Методички'!O57='Бланк Методички'!$X$10,0))))","v":false},{"$f":"IF('Бланк Методички'!O60='Бланк Методички'!$X$7,3,IF('Бланк Методички'!O60='Бланк Методички'!$X$8,2,IF('Бланк Методички'!O60='Бланк Методички'!$X$9,1,IF('Бланк Методички'!O60='Бланк Методички'!$X$10,0))))","v":false},{"$f":"IF('Бланк Методички'!O62='Бланк Методички'!$X$7,3,IF('Бланк Методички'!O62='Бланк Методички'!$X$8,2,IF('Бланк Методички'!O62='Бланк Методички'!$X$9,1,IF('Бланк Методички'!O62='Бланк Методички'!$X$10,0))))","v":false},{"$f":"IF('Бланк Методички'!O65='Бланк Методички'!$X$7,3,IF('Бланк Методички'!O65='Бланк Методички'!$X$8,2,IF('Бланк Методички'!O65='Бланк Методички'!$X$9,1,IF('Бланк Методички'!O65='Бланк Методички'!$X$10,0))))","v":false},{"$f":"IF('Бланк Методички'!O68='Бланк Методички'!$X$7,3,IF('Бланк Методички'!O68='Бланк Методички'!$X$8,2,IF('Бланк Методички'!O68='Бланк Методички'!$X$9,1,IF('Бланк Методички'!O68='Бланк Методички'!$X$10,0))))","v":false},{"$f":"IF('Бланк Методички'!O71='Бланк Методички'!$X$7,3,IF('Бланк Методички'!O71='Бланк Методички'!$X$8,2,IF('Бланк Методички'!O71='Бланк Методички'!$X$9,1,IF('Бланк Методички'!O71='Бланк Методички'!$X$10,0))))","v":false},{"$f":"IF('Бланк Методички'!O75='Бланк Методички'!$X$7,3,IF('Бланк Методички'!O75='Бланк Методички'!$X$8,2,IF('Бланк Методички'!O75='Бланк Методички'!$X$9,1,IF('Бланк Методички'!O75='Бланк Методички'!$X$10,0))))","v":false},{"$f":"IF('Бланк Методички'!O77='Бланк Методички'!$X$7,3,IF('Бланк Методички'!O77='Бланк Методички'!$X$8,2,IF('Бланк Методички'!O77='Бланк Методички'!$X$9,1,IF('Бланк Методички'!O77='Бланк Методички'!$X$10,0))))","v":false},{"$f":"SUM(B9:Z9)","v":0},{"$f":"IF(AA9<=9,\"Крайне низкие\",IF(AND(AA9>=16,AA9<=10),\"Низкие значения\",IF(AND(AA9>=17,AA9<=31),\"Средние значения\",IF(AND(AA9>=32,AA9<=40),\"Высокие значения\",IF(AA9>41,\"Крайне высокие\")))))","v":"Крайне низкие"}]
["Личностное отдаление",{"$f":"IF('Бланк Методички'!O11='Бланк Методички'!X7,3,IF('Бланк Методички'!O11='Бланк Методички'!X8,2,IF('Бланк Методички'!O11='Бланк Методички'!X9,1,IF('Бланк Методички'!O11='Бланк Методички'!X10,0,))))","v":0},{"$f":"IF('Бланк Методички'!O12='Бланк Методички'!X7,3,IF('Бланк Методички'!O12='Бланк Методички'!X8,2,IF('Бланк Методички'!O12='Бланк Методички'!X9,1,IF('Бланк Методички'!O12='Бланк Методички'!X10,0,))))","v":0},{"$f":"IF('Бланк Методички'!O17='Бланк Методички'!$X$7,3,IF('Бланк Методички'!O17='Бланк Методички'!$X$8,2,IF('Бланк Методички'!O17='Бланк Методички'!$X$9,1,IF('Бланк Методички'!O17='Бланк Методички'!$X$10,0))))","v":false},{"$f":"IF('Бланк Методички'!O18='Бланк Методички'!$X$7,3,IF('Бланк Методички'!O18='Бланк Методички'!$X$8,2,IF('Бланк Методички'!O18='Бланк Методички'!$X$9,1,IF('Бланк Методички'!O18='Бланк Методички'!$X$10,0))))","v":false},{"$f":"IF('Бланк Методички'!O19='Бланк Методички'!$X$7,3,IF('Бланк Методички'!O19='Бланк Методички'!$X$8,2,IF('Бланк Методички'!O19='Бланк Методички'!$X$9,1,IF('Бланк Методички'!O19='Бланк Методички'!$X$10,0))))","v":false},{"$f":"IF('Бланк Методички'!O21='Бланк Методички'!$X$7,3,IF('Бланк Методички'!O21='Бланк Методички'!$X$8,2,IF('Бланк Методички'!O21='Бланк Методички'!$X$9,1,IF('Бланк Методички'!O21='Бланк Методички'!$X$10,0))))","v":false},{"$f":"IF('Бланк Методички'!O26='Бланк Методички'!$X$7,3,IF('Бланк Методички'!O26='Бланк Методички'!$X$8,2,IF('Бланк Методички'!O26='Бланк Методички'!$X$9,1,IF('Бланк Методички'!O26='Бланк Методички'!$X$10,0))))","v":false},{"$f":"IF('Бланк Методички'!O29='Бланк Методички'!$X$7,3,IF('Бланк Методички'!O29='Бланк Методички'!$X$8,2,IF('Бланк Методички'!O29='Бланк Методички'!$X$9,1,IF('Бланк Методички'!O29='Бланк Методички'!$X$10,0))))","v":false},{"$f":"IF('Бланк Методички'!O38='Бланк Методички'!$X$7,3,IF('Бланк Методички'!O38='Бланк Методички'!$X$8,2,IF('Бланк Методички'!O38='Бланк Методички'!$X$9,1,IF('Бланк Методички'!O38='Бланк Методички'!$X$10,0))))","v":false},{"$f":"IF('Бланк Методички'!O41='Бланк Методички'!$X$7,3,IF('Бланк Методички'!O41='Бланк Методички'!$X$8,2,IF('Бланк Методички'!O41='Бланк Методички'!$X$9,1,IF('Бланк Методички'!O41='Бланк Методички'!$X$10,0))))","v":false},{"$f":"IF('Бланк Методички'!O43='Бланк Методички'!$X$7,3,IF('Бланк Методички'!O43='Бланк Методички'!$X$8,2,IF('Бланк Методички'!O43='Бланк Методички'!$X$9,1,IF('Бланк Методички'!O43='Бланк Методички'!$X$10,0))))","v":false},{"$f":"IF('Бланк Методички'!O46='Бланк Методички'!$X$7,3,IF('Бланк Методички'!O46='Бланк Методички'!$X$8,2,IF('Бланк Методички'!O46='Бланк Методички'!$X$9,1,IF('Бланк Методички'!O46='Бланк Методички'!$X$10,0))))","v":false},{"$f":"IF('Бланк Методички'!O48='Бланк Методички'!$X$7,3,IF('Бланк Методички'!O48='Бланк Методички'!$X$8,2,IF('Бланк Методички'!O48='Бланк Методички'!$X$9,1,IF('Бланк Методички'!O48='Бланк Методички'!$X$10,0))))","v":false},{"$f":"IF('Бланк Методички'!O51='Бланк Методички'!$X$7,3,IF('Бланк Методички'!O51='Бланк Методички'!$X$8,2,IF('Бланк Методички'!O51='Бланк Методички'!$X$9,1,IF('Бланк Методички'!O51='Бланк Методички'!$X$10,0))))","v":false},{"$f":"IF('Бланк Методички'!O54='Бланк Методички'!$X$7,3,IF('Бланк Методички'!O54='Бланк Методички'!$X$8,2,IF('Бланк Методички'!O54='Бланк Методички'!$X$9,1,IF('Бланк Методички'!O54='Бланк Методички'!$X$10,0))))","v":false},{"$f":"IF('Бланк Методички'!O56='Бланк Методички'!$X$7,3,IF('Бланк Методички'!O56='Бланк Методички'!$X$8,2,IF('Бланк Методички'!O56='Бланк Методички'!$X$9,1,IF('Бланк Методички'!O56='Бланк Методички'!$X$10,0))))","v":false},{"$f":"IF('Бланк Методички'!O59='Бланк Методички'!$X$7,3,IF('Бланк Методички'!O59='Бланк Методички'!$X$8,2,IF('Бланк Методички'!O59='Бланк Методички'!$X$9,1,IF('Бланк Методички'!O59='Бланк Методички'!$X$10,0))))","v":false},{"$f":"IF('Бланк Методички'!O64='Бланк Методички'!$X$7,3,IF('Бланк Методички'!O64='Бланк Методички'!$X$8,2,IF('Бланк Методички'!O64='Бланк Методички'!$X$9,1,IF('Бланк Методички'!O64='Бланк Методички'!$X$10,0))))","v":false},{"$f":"IF('Бланк Методички'!O67='Бланк Методички'!$X$7,3,IF('Бланк Методички'!O67='Бланк Методички'!$X$8,2,IF('Бланк Методички'!O67='Бланк Методички'!$X$9,1,IF('Бланк Методички'!O67='Бланк Методички'!$X$10,0))))","v":false},{"$f":"IF('Бланк Методички'!O69='Бланк Методички'!$X$7,3,IF('Бланк Методички'!O69='Бланк Методички'!$X$8,2,IF('Бланк Методички'!O69='Бланк Методички'!$X$9,1,IF('Бланк Методички'!O69='Бланк Методички'!$X$10,0))))","v":false},{"$f":"IF('Бланк Методички'!O74='Бланк Методички'!$X$7,3,IF('Бланк Методички'!O74='Бланк Методички'!$X$8,2,IF('Бланк Методички'!O74='Бланк Методички'!$X$9,1,IF('Бланк Методички'!O74='Бланк Методички'!$X$10,0))))","v":false},{"$f":"IF('Бланк Методички'!O78='Бланк Методички'!$X$7,3,IF('Бланк Методички'!O78='Бланк Методички'!$X$8,2,IF('Бланк Методички'!O78='Бланк Методички'!$X$9,1,IF('Бланк Методички'!O78='Бланк Методички'!$X$10,0))))","v":false},{"$f":"IF('Бланк Методички'!O79='Бланк Методички'!$X$7,3,IF('Бланк Методички'!O79='Бланк Методички'!$X$8,2,IF('Бланк Методички'!O79='Бланк Методички'!$X$9,1,IF('Бланк Методички'!O79='Бланк Методички'!$X$10,0))))","v":false},{"$f":"IF('Бланк Методички'!O80='Бланк Методички'!$X$7,3,IF('Бланк Методички'!O80='Бланк Методички'!$X$8,2,IF('Бланк Методички'!O80='Бланк Методички'!$X$9,1,IF('Бланк Методички'!O80='Бланк Методички'!$X$10,0))))","v":false},null,{"$f":"SUM(B10:Z10)","v":0},{"$f":"IF(AA10<=9,\"Крайне низкие\",IF(AND(AA10>=10,AA10<=20),\"Низкие значения\",IF(AND(AA10>=21,AA10<=39),\"Средние значения\",IF(AND(AA10>=40,AA10<=49),\"Высокие значения\",IF(AA10>50,\"Крайне высокие\")))))","v":"Крайне низкие"},null,null,null,null,null,null,null,null,null,null,null,null,null,null,null,null,null,{"$f":"'Бланк Методички'!O22","v":0},{"$f":"'Бланк Методички'!O38","v":0},{"$f":"'Бланк Методички'!O46","v":0}]
["Профессиональная мотивация",{"$f":"IF('Бланк Методички'!O10='Бланк Методички'!X7,3,IF('Бланк Методички'!O10='Бланк Методички'!X8,2,IF('Бланк Методички'!O10='Бланк Методички'!X9,1,IF('Бланк Методички'!O10='Бланк Методички'!X10,0,))))","v":0},{"$f":"IF('Бланк Методички'!O14='Бланк Методички'!X7,3,IF('Бланк Методички'!O14='Бланк Методички'!X8,2,IF('Бланк Методички'!O14='Бланк Методички'!X9,1,IF('Бланк Методички'!O14='Бланк Методички'!X10,0,))))","v":0},{"$f":"IF('Бланк Методички'!O16='Бланк Методички'!$X$7,3,IF('Бланк Методички'!O16='Бланк Методички'!$X$8,2,IF('Бланк Методички'!O16='Бланк Методички'!$X$9,1,IF('Бланк Методички'!O16='Бланк Методички'!$X$10,0))))","v":false},{"$f":"IF('Бланк Методички'!O20='Бланк Методички'!$X$7,3,IF('Бланк Методички'!O20='Бланк Методички'!$X$8,2,IF('Бланк Методички'!O20='Бланк Методички'!$X$9,1,IF('Бланк Методички'!O20='Бланк Методички'!$X$10,0))))","v":false},{"$f":"IF('Бланк Методички'!O23='Бланк Методички'!$X$7,3,IF('Бланк Методички'!O23='Бланк Методички'!$X$8,2,IF('Бланк Методички'!O23='Бланк Методички'!$X$9,1,IF('Бланк Методички'!O23='Бланк Методички'!$X$10,0))))","v":false},{"$f":"IF('Бланк Методички'!O27='Бланк Методички'!$X$7,3,IF('Бланк Методички'!O27='Бланк Методички'!$X$8,2,IF('Бланк Методички'!O27='Бланк Методички'!$X$9,1,IF('Бланк Методички'!O27='Бланк Методички'!$X$10,0))))","v":false},{"$f":"IF('Бланк Методички'!O30='Бланк Методички'!$X$7,3,IF('Бланк Методички'!O30='Бланк Методички'!$X$8,2,IF('Бланк Методички'!O30='Бланк Методички'!$X$9,1,IF('Бланк Методички'!O30='Бланк Методички'!$X$10,0))))","v":false},{"$f":"IF('Бланк Методички'!O31='Бланк Методички'!$X$7,3,IF('Бланк Методички'!O31='Бланк Методички'!$X$8,2,IF('Бланк Методички'!O31='Бланк Методички'!$X$9,1,IF('Бланк Методички'!O31='Бланк Методички'!$X$10,0))))","v":false},{"$f":"IF('Бланк Методички'!O32='Бланк Методички'!$X$7,3,IF('Бланк Методички'!O32='Бланк Методички'!$X$8,2,IF('Бланк Методички'!O32='Бланк Методички'!$X$9,1,IF('Бланк Методички'!O32='Бланк Методички'!$X$10,0))))","v":false},{"$f":"IF('Бланк Методички'!O34='Бланк Методички'!$X$7,3,IF('Бланк Методички'!O34='Бланк Методички'!$X$8,2,IF('Бланк Методички'!O34='Бланк Методички'!$X$9,1,IF('Бланк Методички'!O34='Бланк Методички'!$X$10,0))))","v":false},{"$f":"IF('Бланк Методички'!O35='Бланк Методички'!$X$7,3,IF('Бланк Методички'!O35='Бланк Методички'!$X$8,2,IF('Бланк Методички'!O35='Бланк Методички'!$X$9,1,IF('Бланк Методички'!O35='Бланк Методички'!$X$10,0))))","v":false},{"$f":"IF('Бланк Методички'!O36='Бланк Методички'!$X$7,3,IF('Бланк Методички'!O36='Бланк Методички'!$X$8,2,IF('Бланк Методички'!O36='Бланк Методички'!$X$9,1,IF('Бланк Методички'!O36='Бланк Методички'!$X$10,0))))","v":false},{"$f":"IF('Бланк Методички'!O45='Бланк Методички'!$X$7,3,IF('Бланк Методички'!O45='Бланк Методички'!$X$8,2,IF('Бланк Методички'!O45='Бланк Методички'!$X$9,1,IF('Бланк Методички'!O45='Бланк Методички'!$X$10,0))))","v":false},{"$f":"IF('Бланк Методички'!O49='Бланк Методички'!$X$7,3,IF('Бланк Методички'!O49='Бланк Методички'!$X$8,2,IF('Бланк Методички'!O49='Бланк Методички'!$X$9,1,IF('Бланк Методички'!O49='Бланк Методички'!$X$10,0))))","v":false},{"$f":"IF('Бланк Методички'!O52='Бланк Методички'!$X$7,3,IF('Бланк Методички'!O52='Бланк Методички'!$X$8,2,IF('Бланк Методички'!O52='Бланк Методички'!$X$9,1,IF('Бланк Методички'!O52='Бланк Методички'!$X$10,0))))","v":false},{"$f":"IF('Бланк Методички'!O58='Бланк Методички'!$X$7,3,IF('Бланк Методички'!O58='Бланк Методички'!$X$8,2,IF('Бланк Методички'!O58='Бланк Методички'!$X$9,1,IF('Бланк Методички'!O58='Бланк Методички'!$X$10,0))))","v":false},{"$f":"IF('Бланк Методички'!O61='Бланк Методички'!$X$7,3,IF('Бланк Методички'!O61='Бланк Методички'!$X$8,2,IF('Бланк Методички'!O61='Бланк Методички'!$X$9,1,IF('Бланк Методички'!O61='Бланк Методички'!$X$10,0))))","v":false},{"$f":"IF('Бланк Методички'!O63='Бланк Методички'!$X$7,3,IF('Бланк Методички'!O63='Бланк Методички'!$X$8,2,IF('Бланк Методички'!O63='Бланк Методички'!$X$9,1,IF('Бланк Методички'!O63='Бланк Методички'!$X$10,0))))","v":false},{"$f":"IF('Бланк Методички'!O66='Бланк Методички'!$X$7,3,IF('Бланк Методички'!O66='Бланк Методички'!$X$8,2,IF('Бланк Методички'!O66='Бланк Методички'!$X$9,1,IF('Бланк Методички'!O66='Бланк Методички'!$X$10,0))))","v":false},{"$f":"IF('Бланк Методички'!O70='Бланк Методички'!$X$7,3,IF('Бланк Методички'!O70='Бланк Методички'!$X$8,2,IF('Бланк Методички'!O70='Бланк Методички'!$X$9,1,IF('Бланк Методички'!O70='Бланк Методички'!$X$10,0))))","v":false},{"$f":"IF('Бланк Методички'!O72='Бланк Методички'!$X$7,3,IF('Бланк Методички'!O72='Бланк Методички'!$X$8,2,IF('Бланк Методички'!O72='Бланк Методички'!$X$9,1,IF('Бланк Методички'!O72='Бланк Методички'!$X$10,0))))","v":false},{"$f":"IF('Бланк Методички'!O73='Бланк Методички'!$X$7,3,IF('Бланк Методички'!O73='Бланк Методички'!$X$8,2,IF('Бланк Методички'!O73='Бланк Методички'!$X$9,1,IF('Бланк Методички'!O73='Бланк Методички'!$X$10,0))))","v":false},{"$f":"IF('Бланк Методички'!O76='Бланк Методички'!$X$7,3,IF('Бланк Методички'!O76='Бланк Методички'!$X$8,2,IF('Бланк Методички'!O76='Бланк Методички'!$X$9,1,IF('Бланк Методички'!O76='Бланк Методички'!$X$10,0))))","v":false},null,null,0,{"$f":"IF(AA11<=7,\"Крайне низкие\",IF(AND(AA11>=8,AA11<=12),\"Низкие значения\",IF(AND(AA11>=13,AA11<=24),\"Средние значения\",IF(AND(AA11>=25,AA11<=31),\"Высокие значения\",IF(AA11>32,\"Крайне высокие\")))))","v":"Крайне низкие"},null,null,null,null,null,null,null,null,null,null,null,null,null,null,null,null,null,{"$f":"'Бланк Методички'!O12","v":0},{"$f":"'Бланк Методички'!O28","v":0},{"$f":"'Бланк Методички'!O40","v":0}]
["Психическое «выгорание»",null,null,null,null,null,null,null,null,null,null,null,null,null,null,null,null,null,null,null,null,null,null,null,null,null,{"$f":"SUM(AA9:AA11)","v":0},{"$f":"IF(AA12<=31,\"Крайне низкие\",IF(AND(AA12>=32,AA12<=51),\"Низкие значения\",IF(AND(AA12>=52,AA12<=92),\"Средние значения\",IF(AND(AA12>=93,AA12<=112),\"Высокие значения\",IF(AA12>113,\"Крайне высокие\")))))","v":"Крайне низкие"},null,null,null,null,null,null,null,null,null,null,null,null,null,null,null,null,null,{"$f":"'Бланк Методички'!O9","v":0},{"$f":"'Бланк Методички'!O17","v":0},{"$f":"'Бланк Методички'!O33","v":0},{"$f":"'Бланк Методички'!O41","v":0}]

{"sheet":"Результат","index":2,"n_rows":45,"n_cols":8,"rows_kept":45,"cut":false,"hidden":false,"merged":[[25,0,25,8],[38,0,38,8],[39,0,39,8],[40,0,40,8],[41,0,41,8],[42,0,42,8],[19,0,19,8],[20,0,20,8],[21,0,21,8],[22,0,22,8],[23,0,23,8],[24,0,24,8],[35,0,35,8],[36,0,36,8],[37,0,37,8],[44,0,45,8],[9,0,9,8],[11,0,11,8],[12,0,12,8],[13,0,13,8],[14,0,14,8],[29,0,29,8],[30,0,30,8],[31,0,31,8],[32,0,32,8],[33,0,33,8],[34,0,34,8],[8,0,8,4],[8,6,8,8],[26,0,26,8],[27,0,27,8],[28,0,28,8],[15,0,15,8],[16,0,16,8],[17,0,17,8],[18,0,18,8],[6,0,6,4],[6,6,6,8],[7,0,7,4],[7,6,7,8],[0,0,0,8],[2,1,2,5],[2,7,2,8],[4,0,4,4],[4,6,4,8],[5,0,5,4],[5,6,5,8]]}
["Определение психического выгорания (А.А.Рукавишников)"]
[]
["ФИО",{"$f":"PROPER('Бланк Методички'!D2)","v":""},null,null,null,null,"Дата",{"$f":"TODAY()","v":"2018-02-17"}]
[]
["Шкала",null,null,null,null,"Баллы","Уровень"]
[{"$f":"'Обработка результатов'!A3","v":"Психоэмоциональное истощение"},null,null,null,null,{"$f":"'Обработка результатов'!AA9","v":0},{"$f":"'Обработка результатов'!AB9","v":"Крайне низкие"}]
[{"$f":"'Обработка результатов'!A4","v":"Личностное отдаление"},null,null,null,null,{"$f":"'Обработка результатов'!AA10","v":0},{"$f":"'Обработка результатов'!AB10","v":"Крайне низкие"}]
[{"$f":"'Обработка результатов'!A5","v":"Профессиональная мотивация"},null,null,null,null,{"$f":"'Обработка результатов'!AA11","v":0},{"$f":"'Обработка результатов'!AB11","v":"Крайне низкие"}]
[{"$f":"'Обработка результатов'!A12","v":"Психическое «выгорание»"},null,null,null,null,{"$f":"'Обработка результатов'!AA12","v":0},{"$f":"'Обработка результатов'!AB12","v":"Крайне низкие"}]
[]
[]
[]
[]
[]
[]
[]
[]
[]
[]
[]
[]
[]
[]
[]
[]
[]
[]
[]
[]
[]
[]
[]
[]
[]
[]
[]
[]
[]
[]
[]
[]
[]
[]
[]
["http://eschool.by/psychology/"]

{"sheet":"Результат с пояснениями","index":3,"n_rows":50,"n_cols":8,"rows_kept":50,"cut":false,"hidden":false,"merged":[[41,1,45,3],[49,6,49,8],[35,0,40,0],[35,1,40,3],[35,4,40,6],[35,7,40,8],[41,0,45,0],[41,4,45,6],[41,7,45,8],[27,0,28,0],[27,1,27,8],[28,7,28,8],[28,4,28,6],[28,1,28,3],[18,0,22,8],[26,0,26,8],[0,0,0,8],[2,7,2,8],[2,1,2,5],[24,0,24,4],[24,6,24,8],[6,0,9,8],[12,0,15,8],[4,0,4,4],[5,0,5,4],[11,0,11,4],[17,0,17,4],[5,6,5,8],[11,6,11,8],[17,6,17,8],[4,6,4,8],[29,1,34,3],[29,4,34,6],[29,7,34,8],[29,0,34,0]]}
["Определение психического выгорания (А.А.Рукавишников)"]
[]
["ФИО",{"$f":"PROPER('Бланк Методички'!D2)","v":""},null,null,null,null,"Дата",{"$f":"TODAY()","v":"2018-02-17"}]
[]
["Шкала",null,null,null,null,"Баллы","Уровень"]
[{"$f":"'Обработка результатов'!A3","v":"Психоэмоциональное истощение"},null,null,null,null,{"$f":"'Обработка результатов'!AA9","v":0},{"$f":"'Обработка результатов'!AB9","v":"Крайне низкие"}]
["Психоэмоциональное истощение – процесс исчерпания эмоциональных, физических, энергетических ресурсов профессионала, работающего с людьми. Истощение проявляется в хроническом эмоциональном и физическом утомлении, равнодушии и холодности по отношению к окружающим с признаками депрессии и раздражительности."]
[]
[]
[]
[]
[{"$f":"'Обработка результатов'!A4","v":"Личностное отдаление"},null,null,null,null,{"$f":"'Обработка результатов'!AA10","v":0},{"$f":"'Обработка результатов'!AB10","v":"Крайне низкие"}]
["Личностное отдаление – специфическая форма социальной дезадаптации профессионала, работающего с людьми. Личностное отдаление проявляется в уменьшении количества контактов с окружающими, повышении раздражительности и нетерпимости в ситуациях общения, негативизме по отношению к другим людям."]
[]
[]
[]
[]
[{"$f":"'Обработка результатов'!A5","v":"Профессиональная мотивация"},null,null,null,null,{"$f":"'Обработка результатов'!AA11","v":0},{"$f":"'Обработка результатов'!AB11","v":"Крайне низкие"}]
["Профессиональная мотивация – уровень рабочей мотивации и энтузиазма по отношению к работе альтруистического содержания. Состояние мотивационной сферы оценивается таким показателем, как продуктивность профессиональной деятельности, оптимизм и заинтересованность в работе, самооценка профессиональной компетентности и степени успешности в работе с людьми."]
[]
[]
[]
[]
[]
[{"$f":"'Обработка результатов'!A12","v":"Психическое «выгорание»"},null,null,null,null,{"$f":"'Обработка результатов'!AA12","v":0},{"$f":"'Обработка результатов'!AB12","v":"Крайне низкие"}]
[]
["Жизненные проявления психического «выгорания» на системно-структурных уровнях "]
["Шкалы ПВ","Проявления психического «выгорания» на уровнях:"]
[null,"Межличностном",null,null,"Личностном",null,null,"Мотивационом"]
["ПИ","Психическое истощение. Раздражительность. Агрессивность. Повышенная чувствительность к оценкам других.",null,null,"Низкая эмоциональная толерантность, тревожность.",null,null,"Нежелание идти на работу. Желание скорее окончить рабочий день. Появление прогулов."]
[]
[]
[]
[]
[]
["ЛО","Нежелание контактировать с людьми. Циничное, негативное отношение к людям.   ",null,null,"Критичное отношение к окружающим и некритичность в оценке самого себя. Значимость своей правоты.  ",null,null,"Снижение включенности в работу и дела других людей. Безразличие к своей карьере."]
[]
[]
[]
[]
[]
["ПМ","Неудовлетворенность работой и отношениями в коллективе. ",null,null,"Заниженная самооценка, неудовлетворенность собой как профессионалом. Чувство низкой профессиональной эффективности и отдачи.",null,null,"Снижение потребности в достижениях."]
[]
[]
[]
[]
[]
[]
[]
[null,null,null,null,null,null,"http://eschool.by/psychology/"]